bitfinex/quotes_BTCUSD_20250105
["timestamp","ask_amount","ask_price","bid_price","bid_amount"]
[1736044042333,8.54e-05,98204.0,98203.0,0.47383499]
[1736044051213,8.54e-05,98204.0,98203.0,0.47583499]
[1736044051943,8.54e-05,98204.0,98203.0,0.47383499]
[1736044052329,8.54e-05,98204.0,98203.0,0.47983499]
[1736044052532,8.54e-05,98204.0,98203.0,0.47400579]
[1736044052932,8.54e-05,98204.0,98203.0,0.47500579]
[1736044053128,8.54e-05,98204.0,98203.0,0.47400579]
[1736044053584,8.54e-05,98204.0,98203.0,0.47600579]
[1736044053991,8.54e-05,98204.0,98203.0,0.47700579]
[1736044054480,8.54e-05,98204.0,98203.0,0.47600579]
[1736044054833,8.54e-05,98204.0,98203.0,0.47700579]
[1736044055669,8.54e-05,98204.0,98203.0,0.47500579]
[1736044056156,8.54e-05,98204.0,98203.0,0.47700579]
[1736044056808,0.06636801,98217.0,98216.0,0.353632]
[1736044057020,8.54e-05,98220.0,98219.0,0.15]
[1736044057226,0.09142453,98226.0,98221.0,0.15]
[1736044057457,0.09142453,98226.0,98223.0,0.10398632]
[1736044057663,0.09142453,98226.0,98223.0,0.25398632]
[1736044057836,0.09142453,98226.0,98223.0,0.27700101]
[1736044058826,0.09142453,98226.0,98223.0,0.37700101]
[1736044059029,0.1,98236.0,98223.0,0.37700101]
[1736044060848,0.1,98236.0,98223.0,0.38000101]
[1736044061253,0.1,98236.0,98223.0,0.38100101]
[1736044061711,0.1,98236.0,98223.0,0.37800101]
[1736044061936,0.1,98236.0,98223.0,0.37700101]
[1736044062141,0.1,98236.0,98223.0,0.38200101]
[1736044062337,0.1,98236.0,98223.0,0.38400101]
[1736044064108,0.1,98236.0,98223.0,0.38200101]
[1736044064309,0.1,98236.0,98223.0,0.37700101]
[1736044064553,0.1,98236.0,98223.0,0.38500101]
[1736044066865,0.1,98236.0,98223.0,0.38300101]
[1736044067206,0.1,98236.0,98223.0,0.37900101]
[1736044067564,0.1,98236.0,98223.0,0.38400101]
[1736044069839,0.1,98236.0,98223.0,0.38200101]
[1736044070395,0.1,98236.0,98223.0,0.37900101]
[1736044070901,0.1,98236.0,98223.0,0.38400101]
[1736044071104,0.1,98236.0,98223.0,0.37900101]
[1736044071303,0.1,98236.0,98223.0,0.37700101]
[1736044071504,0.1,98236.0,98223.0,0.38400101]
[1736044071706,0.1,98236.0,98223.0,0.37900101]
[1736044072123,0.1,98236.0,98223.0,0.38500101]
[1736044073561,0.1,98236.0,98223.0,0.38300101]
[1736044073993,0.1,98236.0,98223.0,0.38500101]
[1736044079542,0.1,98236.0,98223.0,0.42573801]
[1736044079746,0.0783,98244.0,98223.0,0.42573801]
[1736044079945,0.079,98235.0,98223.0,0.42573801]
[1736044081708,0.179,98235.0,98223.0,0.42573801]
[1736044082805,0.179,98235.0,98223.0,0.42373801]
[1736044083220,0.179,98235.0,98223.0,0.41973801]
[1736044083543,0.179,98235.0,98223.0,0.42273801]
[1736044083877,0.179,98235.0,98223.0,0.41973801]
[1736044084073,0.2273,98235.0,98223.0,0.41973801]
[1736044084218,0.2273,98235.0,98223.0,0.42573801]
[1736044089069,0.2273,98235.0,98223.0,0.42373801]
[1736044089276,0.2273,98235.0,98223.0,0.42573801]
[1736044089488,0.2273,98235.0,98223.0,0.92573801]
[1736044089661,0.2273,98235.0,98223.0,0.87700101]
[1736044090064,0.2273,98235.0,98223.0,0.88400101]
[1736044090200,0.2273,98235.0,98223.0,0.87900101]
[1736044090603,0.2273,98235.0,98223.0,0.88400101]
[1736044090803,0.2273,98235.0,98223.0,0.87700101]
[1736044091256,0.2273,98235.0,98223.0,0.88200101]
[1736044092394,0.2273,98235.0,98223.0,0.88400101]
[1736044092827,0.2273,98235.0,98223.0,0.88200101]
[1736044093028,0.2273,98235.0,98223.0,0.88400101]
[1736044093366,0.2273,98235.0,98223.0,0.87900101]
[1736044093747,0.2273,98235.0,98223.0,0.88500101]
[1736044095170,0.2273,98235.0,98223.0,0.87816101]
[1736044095377,0.0806708,98225.0,98223.0,0.88500101]
[1736044095530,0.0806708,98225.0,98223.0,0.78500101]
[1736044095737,0.04888,98224.0,98223.0,0.78500101]
[1736044096136,0.12938,98224.0,98223.0,0.78500101]
[1736044096341,0.12938,98224.0,98223.0,0.77816101]
[1736044096570,0.12938,98224.0,98223.0,0.78500101]
[1736044096801,0.12938,98224.0,98223.0,0.78300101]
[1736044096998,0.12938,98224.0,98223.0,0.77900101]
[1736044097225,0.12938,98224.0,98223.0,0.78400101]
[1736044098140,0.12938,98224.0,98223.0,0.77900101]
[1736044098342,0.12938,98224.0,98223.0,0.78300101]
[1736044098552,0.12938,98224.0,98223.0,0.78100101]
[1736044098794,0.12938,98224.0,98223.0,0.78300101]
[1736044099277,0.12938,98224.0,98223.0,0.78100101]
[1736044099691,0.12938,98224.0,98223.0,0.78200101]
[1736044099895,0.12938,98224.0,98223.0,0.77800101]
[1736044100043,0.12938,98224.0,98223.0,0.78100101]
[1736044100503,0.12938,98224.0,98223.0,0.78200101]
[1736044102317,0.12938,98224.0,98223.0,0.78100101]
[1736044102705,0.12938,98224.0,98223.0,0.78200101]
[1736044103415,0.12938,98224.0,98223.0,0.77800101]
[1736044103922,0.12938,98224.0,98223.0,0.78200101]
[1736044105094,0.12938,98224.0,98223.0,0.77700101]
[1736044105332,0.12938,98224.0,98223.0,0.78200101]
[1736044106090,0.12938,98224.0,98223.0,0.78100101]
[1736044106511,0.12938,98224.0,98223.0,0.78200101]
[1736044106686,0.12938,98224.0,98223.0,0.77800101]
[1736044107116,0.12938,98224.0,98223.0,0.78200101]
[1736044107402,0.12938,98224.0,98223.0,0.77800101]
[1736044107708,0.12938,98224.0,98223.0,0.78200101]
[1736044107918,0.12938,98224.0,98223.0,0.78100101]
[1736044108356,0.12938,98224.0,98223.0,0.78200101]
[1736044108749,0.12938,98224.0,98223.0,0.77700101]
[1736044108944,0.12938,98224.0,98223.0,0.77800101]
[1736044110045,0.12938,98224.0,98223.0,0.78000101]
[1736044111013,0.12938,98224.0,98223.0,0.62316101]
[1736044111215,0.22938,98224.0,98223.0,0.62316101]
[1736044111427,0.32921176,98224.0,98223.0,0.62316101]
[1736044112905,0.32921176,98224.0,98223.0,0.62216101]
[1736044113313,0.32921176,98224.0,98223.0,0.62016101]
[1736044113722,0.32921176,98224.0,98223.0,0.62216101]
[1736044113927,0.32921176,98224.0,98223.0,0.62016101]
[1736044114747,0.32921176,98224.0,98223.0,0.62116101]
[1736044115002,0.32921176,98224.0,98223.0,0.62416101]
[1736044115202,0.32921176,98224.0,98223.0,0.62316101]
[1736044115698,0.82209936,98224.0,98223.0,0.62316101]
[1736044116263,0.82209936,98224.0,98223.0,0.62516101]
[1736044116608,0.82209936,98224.0,98223.0,0.62216101]
[1736044117046,0.82209936,98224.0,98223.0,0.62816101]
[1736044117318,0.82209936,98224.0,98223.0,0.62216101]
[1736044117671,0.82209936,98224.0,98223.0,0.62716101]
[1736044117947,0.82209936,98224.0,98223.0,0.62016101]
[1736044118172,0.82209936,98224.0,98223.0,0.62716101]
[1736044119214,0.82209936,98224.0,98223.0,0.62516101]
[1736044119463,0.82209936,98224.0,98223.0,0.62716101]
[1736044120828,0.82209936,98224.0,98223.0,0.62216101]
[1736044121034,0.82209936,98224.0,98223.0,0.62016101]
[1736044121308,0.82209936,98224.0,98223.0,0.62716101]
[1736044122008,0.82209936,98224.0,98223.0,0.62216101]
[1736044122233,0.82209936,98224.0,98223.0,0.62016101]
[1736044122458,0.82209936,98224.0,98223.0,0.62716101]
[1736044123708,0.82209936,98224.0,98223.0,0.62216101]
[1736044123903,0.82209936,98224.0,98223.0,0.62016101]
[1736044124040,0.82209936,98224.0,98223.0,0.62816101]
[1736044127571,0.32921176,98224.0,98223.0,0.62816101]
[1736044128528,0.32921176,98224.0,98223.0,0.62616101]
[1736044128730,0.32921176,98224.0,98223.0,0.62016101]
[1736044128941,0.22938,98224.0,98223.0,0.62216101]
[1736044130323,0.22938,98224.0,98223.0,0.62616101]
[1736044130525,0.10058,98224.0,98223.0,0.62216101]
[1736044130977,0.00058,98224.0,98223.0,0.62816101]
[1736044131181,0.10058,98224.0,98223.0,0.62816101]
[1736044133875,0.10058,98224.0,98223.0,0.62216101]
[1736044134083,0.10058,98224.0,98223.0,0.62016101]
[1736044138154,0.10058,98224.0,98223.0,0.62216101]
[1736044138356,0.10058,98224.0,98223.0,0.62016101]
[1736044139169,0.00058,98224.0,98223.0,0.62016101]
[1736044139371,0.10058,98224.0,98223.0,0.62016101]
[1736044139775,0.10058,98224.0,98223.0,0.62116101]
[1736044140177,0.10058,98224.0,98223.0,0.62316101]
[1736044141299,0.10058,98224.0,98223.0,0.62216101]
[1736044141493,0.10058,98224.0,98223.0,0.62316101]
[1736044141746,0.17758,98224.0,98223.0,0.62116101]
[1736044142184,0.22718,98224.0,98223.0,0.62116101]
[1736044143250,0.22718,98224.0,98223.0,0.62316101]
[1736044143436,0.22718,98224.0,98223.0,0.62016101]
[1736044143854,0.22718,98224.0,98223.0,0.62116101]
[1736044144203,0.22718,98224.0,98223.0,0.62016101]
[1736044144618,0.32701176,98224.0,98223.0,0.62016101]
[1736044145475,0.81989936,98224.0,98223.0,0.62016101]
[1736044157455,0.91132389,98224.0,98223.0,0.62016101]
[1736044158432,0.81989936,98224.0,98223.0,0.62016101]
[1736044159193,0.81989936,98224.0,98223.0,0.51617469]
[1736044160686,1.34071993,98224.0,98223.0,0.51617469]
[1736044161303,1.34071993,98224.0,98223.0,0.5]
[1736044161737,1.34071993,98224.0,98223.0,0.51616632]
[1736044163302,1.15785114,98224.0,98223.0,0.51616632]
[1736044164565,1.34071993,98224.0,98223.0,0.51616632]
[1736044165908,1.15785114,98224.0,98223.0,0.51616632]
[1736044166749,1.15785114,98224.0,98223.0,0.51816632]
[1736044167002,1.15785114,98224.0,98223.0,0.52116632]
[1736044167282,1.15785114,98224.0,98223.0,0.51916632]
[1736044167480,1.15785114,98224.0,98223.0,0.52016632]
[1736044167684,1.15785114,98224.0,98223.0,0.51716632]
[1736044167824,1.15785114,98224.0,98223.0,0.51916632]
[1736044168230,1.15785114,98224.0,98223.0,0.51716632]
[1736044169056,0.95714359,98224.0,98223.0,0.51716632]
[1736044169601,0.95714359,98224.0,98223.0,0.51916632]
[1736044169958,0.95714359,98224.0,98223.0,0.52016632]
[1736044170155,0.95714359,98224.0,98223.0,0.51716632]
[1736044170362,0.81989936,98224.0,98223.0,0.51716632]
[1736044170645,0.81989936,98224.0,98223.0,0.51916632]
[1736044170861,0.81989936,98224.0,98223.0,0.52016632]
[1736044171059,0.81989936,98224.0,98223.0,0.51716632]
[1736044171266,0.81989936,98224.0,98223.0,0.51616632]
[1736044171683,0.81989936,98224.0,98223.0,0.51716632]
[1736044171832,0.81989936,98224.0,98223.0,0.52016632]
[1736044172653,0.95711535,98224.0,98223.0,0.52016632]
[1736044173920,0.81989936,98224.0,98223.0,0.52016632]
[1736044175374,0.95711535,98224.0,98223.0,0.52016632]
[1736044176557,1.02348314,98224.0,98223.0,0.52016632]
[1736044178736,0.88626715,98224.0,98223.0,0.52016632]
[1736044179956,1.02348314,98224.0,98223.0,0.52016632]
[1736044181782,1.02348314,98224.0,98223.0,0.02016632]
[1736044181980,1.02348314,98224.0,98223.0,0.004]
[1736044182207,0.88626715,98224.0,98223.0,0.004]
[1736044183442,1.22406001,98224.0,98223.0,0.004]
[1736044184793,1.4069288,98224.0,98223.0,0.004]
[1736044188280,1.22406001,98224.0,98223.0,0.004]
[1736044190788,1.4527493,98224.0,98223.0,0.004]
[1736044195622,1.22406001,98224.0,98223.0,0.004]
[1736044199629,1.45309192,98224.0,98223.0,0.004]
[1736044200504,1.22649192,98224.0,98223.0,0.004]
[1736044200710,1.09746001,98224.0,98223.0,0.004]
[1736044202383,0.99746001,98224.0,98223.0,0.004]
[1736044204219,1.09746001,98224.0,98223.0,0.004]
[1736044204420,0.99746001,98224.0,98223.0,0.004]
[1736044204580,1.09746001,98224.0,98223.0,0.004]
[1736044205206,0.99746001,98224.0,98223.0,0.10798632]
[1736044206693,0.89762825,98224.0,98223.0,0.10798632]
[1736044207117,0.69727642,98224.0,98223.0,0.10798632]
[1736044208475,0.65144355,98224.0,98223.0,0.10798632]
[1736044210700,0.55983539,98224.0,98223.0,0.10798632]
[1736044211128,0.65983539,98224.0,98223.0,0.10798632]
[1736044211822,0.75966715,98224.0,98223.0,0.10798632]
[1736044212095,0.75966715,98224.0,98223.0,0.004]
[1736044213744,1.09775612,98224.0,98223.0,0.004]
[1736044216293,1.32680111,98224.0,98223.0,0.004]
[1736044217520,1.40980111,98224.0,98223.0,0.004]
[1736044218133,1.30980111,98224.0,98223.0,0.004]
[1736044218366,1.40980111,98224.0,98223.0,0.004]
[1736044218578,1.18075612,98224.0,98223.0,0.004]
[1736044221316,1.20375612,98224.0,98223.0,0.004]
[1736044221516,0.50595376,98221.0,98220.0,0.0001708]
[1736044222890,0.84404273,98221.0,98220.0,0.0001708]
[1736044223090,0.84404273,98221.0,98220.0,0.0031708]
[1736044223091,0.89114273,98221.0,98220.0,0.0031708]
[1736044223726,1.09114273,98221.0,98220.0,0.0001708]
[1736044223949,1.12292649,98221.0,98220.0,0.0001708]
[1736044224153,1.59608648,98221.0,98220.0,0.0001708]
[1736044224371,1.56430272,98221.0,98220.0,0.0001708]
[1736044224592,0.40348876,98204.0,98203.0,0.0001708]
[1736044224812,0.53248876,98204.0,98203.0,0.0001708]
[1736044225419,0.75548876,98204.0,98203.0,0.0001708]
[1736044226396,0.75548876,98204.0,98203.0,0.0041708]
[1736044226607,0.75548876,98204.0,98203.0,0.0001708]
[1736044227207,0.65548876,98204.0,98203.0,0.0001708]
[1736044227417,1.46673772,98204.0,98203.0,0.0001708]
[1736044228189,0.99357773,98204.0,98203.0,0.0001708]
[1736044228701,0.99657773,98204.0,98203.0,0.0001708]
[1736044229114,0.99357773,98204.0,98203.0,0.0001708]
[1736044229314,0.1,98192.0,98191.0,0.0001708]
[1736044230235,0.10110145,98192.0,98191.0,0.0001708]
[1736044230619,0.10117695,98192.0,98191.0,0.0001708]
[1736044231209,0.10117695,98192.0,98191.0,0.0011708]
[1736044231583,0.10117695,98192.0,98191.0,0.0031708]
[1736044231992,0.10117695,98192.0,98191.0,0.0011708]
[1736044232524,0.10117695,98192.0,98191.0,0.0001708]
[1736044232846,0.10117695,98192.0,98191.0,0.0031708]
[1736044233048,0.27800871,98192.0,98191.0,0.0031708]
[1736044233181,0.27690726,98192.0,98191.0,0.0001708]
[1736044233595,0.27890726,98192.0,98191.0,0.0001708]
[1736044233991,0.34880726,98192.0,98191.0,0.0001708]
[1736044235305,0.83168246,98192.0,98191.0,0.0001708]
[1736044235531,0.83068246,98192.0,98191.0,0.0001708]
[1736044235719,0.83168246,98192.0,98191.0,0.0001708]
[1736044235923,0.83268246,98192.0,98191.0,0.0001708]
[1736044236336,0.83168246,98192.0,98191.0,0.0001708]
[1736044236779,0.83268246,98192.0,98191.0,0.0001708]
[1736044241492,0.83168246,98192.0,98191.0,0.0001708]
[1736044241692,0.83268246,98192.0,98191.0,0.0001708]
[1736044241883,0.83168246,98192.0,98191.0,0.0001708]
[1736044242082,0.83068246,98192.0,98191.0,0.0001708]
[1736044242284,0.83268246,98192.0,98191.0,0.0001708]
[1736044242694,0.83168246,98192.0,98191.0,0.0001708]
[1736044242985,0.83268246,98192.0,98191.0,0.0001708]
[1736044243430,0.83168246,98192.0,98191.0,0.0001708]
[1736044243839,1.03636446,98192.0,98191.0,0.0001708]
[1736044244334,0.83268246,98192.0,98191.0,0.0001708]
[1736044244759,0.83168246,98192.0,98191.0,0.0001708]
[1736044244974,0.83268246,98192.0,98191.0,0.0001708]
[1736044245670,0.83168246,98192.0,98191.0,0.0001708]
[1736044245809,0.83268246,98192.0,98191.0,0.0001708]
[1736044247317,0.5067044,98191.0,98180.0,0.0001708]
[1736044247531,0.1,98181.0,98180.0,0.10415712]
[1736044248009,0.19983176,98181.0,98180.0,0.11983608]
[1736044249231,0.19983176,98181.0,98180.0,0.12383608]
[1736044249439,0.19983176,98181.0,98180.0,0.11983608]
[1736044249598,0.19983176,98181.0,98180.0,0.12483608]
[1736044249794,0.19983176,98181.0,98180.0,0.12683608]
[1736044253137,0.68333616,98181.0,98180.0,0.12683608]
[1736044259787,0.68333616,98181.0,98180.0,0.62683608]
[1736044265077,0.68333616,98181.0,98180.0,0.62483608]
[1736044265524,0.68333616,98181.0,98180.0,0.62083608]
[1736044265818,0.68333616,98181.0,98180.0,0.62283608]
[1736044266047,0.68333616,98181.0,98180.0,0.62183608]
[1736044267284,0.68333616,98181.0,98180.0,0.62083608]
[1736044267603,0.68333616,98181.0,98180.0,0.62383608]
[1736044267811,0.68333616,98181.0,98180.0,0.62283608]
[1736044267942,0.68333616,98181.0,98180.0,0.61983608]
[1736044268164,0.68333616,98181.0,98180.0,0.62083608]
[1736044268814,0.68333616,98181.0,98180.0,0.62383608]
[1736044270841,1.02152947,98181.0,98180.0,0.62383608]
[1736044272920,1.24985077,98181.0,98180.0,0.62383608]
[1736044275273,1.02152947,98181.0,98180.0,0.62383608]
[1736044276179,1.02152947,98181.0,98180.0,0.62083608]
[1736044276392,1.02152947,98181.0,98180.0,0.62383608]
[1736044277061,1.10212947,98181.0,98180.0,0.62383608]
[1736044277628,1.10212947,98181.0,98180.0,0.62283608]
[1736044278007,1.10212947,98181.0,98180.0,0.62383608]
[1736044278394,1.10212947,98181.0,98180.0,0.51984976]
[1736044278596,1.14882947,98181.0,98180.0,0.51984976]
[1736044278967,1.14882947,98181.0,98180.0,0.51884976]
[1736044279146,1.14882947,98181.0,98180.0,0.51984976]
[1736044279355,1.14882947,98181.0,98180.0,0.51684976]
[1736044279571,1.14882947,98181.0,98180.0,0.51884976]
[1736044279770,1.14882947,98181.0,98180.0,0.51684976]
[1736044281267,1.14882947,98181.0,98180.0,0.51784976]
[1736044281491,1.14882947,98181.0,98180.0,0.51584976]
[1736044285804,1.14882947,98181.0,98180.0,0.61983608]
[1736044289106,1.14882947,98181.0,98180.0,0.62083608]
[1736044289817,1.14882947,98181.0,98180.0,0.62183608]
[1736044289952,1.14882947,98181.0,98180.0,0.62083608]
[1736044291407,1.14882947,98181.0,98180.0,0.62183608]
[1736044291644,1.14882947,98181.0,98180.0,0.61983608]
[1736044292049,1.14882947,98181.0,98180.0,0.62083608]
[1736044292467,1.14882947,98181.0,98180.0,0.61983608]
[1736044292658,1.14882947,98181.0,98180.0,0.62083608]
[1736044293204,1.14882947,98181.0,98180.0,0.61983608]
[1736044294484,1.14882947,98181.0,98180.0,0.51584976]
[1736044294684,1.14882947,98181.0,98180.0,0.51684976]
[1736044294998,1.14882947,98181.0,98180.0,0.51584976]
[1736044295385,1.14882947,98181.0,98180.0,0.51684976]
[1736044295575,1.14882947,98181.0,98180.0,0.51584976]
[1736044295979,1.14882947,98181.0,98180.0,0.51684976]
[1736044296183,1.14882947,98181.0,98180.0,0.51584976]
[1736044296521,1.14882947,98181.0,98180.0,0.51684976]
[1736044297676,1.14882947,98181.0,98180.0,0.51584976]
[1736044298075,1.14882947,98181.0,98180.0,0.51684976]
[1736044298303,1.14882947,98181.0,98180.0,0.51584976]
[1736044298701,1.14882947,98181.0,98180.0,0.51684976]
[1736044299326,1.1590841,98181.0,98180.0,0.51684976]
[1736044299525,1.1820841,98181.0,98180.0,0.51684976]
[1736044299898,1.1820841,98181.0,98180.0,0.52374606]
[1736044300585,1.65579048,98181.0,98180.0,0.52374606]
[1736044301459,1.65579048,98181.0,98180.0,0.52274606]
[1736044301669,1.65579048,98181.0,98180.0,0.52374606]
[1736044302077,1.65579048,98181.0,98180.0,0.52274606]
[1736044302231,1.65579048,98181.0,98180.0,0.02884917]
[1736044302420,1.65579048,98181.0,98180.0,0.00725385]
[1736044302621,1.65579048,98181.0,98180.0,0.00625385]
[1736044302985,0.1,98179.0,98178.0,0.0001708]
[1736044303146,0.10110145,98179.0,98178.0,0.0001708]
[1736044303344,0.20093321,98179.0,98178.0,0.0001708]
[1736044303746,0.30093321,98179.0,98178.0,0.0001708]
[1736044303951,0.86696077,98179.0,98178.0,0.0001708]
[1736044304150,0.177,98171.0,98170.0,0.0001708]
[1736044304346,0.24339868,98171.0,98170.0,0.0001708]
[1736044304727,0.89646404,98171.0,98170.0,0.0001708]
[1736044305869,0.89646404,98171.0,98170.0,0.0011708]
[1736044306712,0.89646404,98171.0,98170.0,0.0001708]
[1736044307200,0.89646404,98171.0,98170.0,0.0011708]
[1736044308493,0.89646404,98171.0,98170.0,0.0001708]
[1736044308901,0.89746404,98171.0,98170.0,0.0001708]
[1736044309480,0.9899886,98171.0,98170.0,0.0001708]
[1736044309902,0.9889886,98171.0,98170.0,0.0001708]
[1736044310123,0.19983176,98161.0,98160.0,0.07854971]
[1736044310322,0.19983176,98161.0,98160.0,0.10398632]
[1736044310508,0.19983176,98161.0,98160.0,0.12560212]
[1736044311192,0.19983176,98161.0,98160.0,0.12660212]
[1736044311491,0.19983176,98161.0,98160.0,0.12670793]
[1736044312720,0.19983176,98161.0,98160.0,0.12970793]
[1736044312851,0.19983176,98161.0,98160.0,0.12670793]
[1736044313277,0.19983176,98161.0,98160.0,0.12970793]
[1736044313670,0.19983176,98161.0,98160.0,0.13070793]
[1736044315147,0.75932376,98161.0,98160.0,0.02672161]
[1736044315547,0.75932376,98161.0,98160.0,0.00510581]
[1736044315882,0.75932376,98161.0,98160.0,0.00410581]
[1736044316087,0.75932376,98161.0,98160.0,0.00110581]
[1736044316301,0.75932376,98161.0,98160.0,0.00410581]
[1736044316508,0.75932376,98161.0,98160.0,0.02573528]
[1736044316748,0.75932376,98161.0,98160.0,0.00410581]
[1736044317539,0.78232376,98161.0,98160.0,0.00410581]
[1736044317737,0.82932376,98161.0,98160.0,0.00410581]
[1736044318347,0.82932376,98161.0,98160.0,0.00419131]
[1736044318557,0.82932376,98161.0,98160.0,0.00119131]
[1736044318775,0.82932376,98161.0,98160.0,0.00019131]
[1736044318955,0.82932376,98161.0,98160.0,0.00319131]
[1736044319359,0.82932376,98161.0,98160.0,0.00419131]
[1736044322880,0.96649456,98161.0,98160.0,0.00419131]
[1736044326145,0.82932376,98161.0,98160.0,0.00419131]
[1736044326706,0.82932376,98161.0,98160.0,0.00019131]
[1736044327688,1.34997203,98161.0,98160.0,0.00019131]
[1736044328121,1.34997203,98161.0,98160.0,0.00119131]
[1736044328720,1.34997203,98161.0,98160.0,0.00419131]
[1736044328920,1.34997203,98161.0,98160.0,0.00119131]
[1736044329122,1.34997203,98161.0,98160.0,0.00019131]
[1736044329342,1.35197203,98161.0,98160.0,0.00019131]
[1736044329529,1.35297203,98161.0,98160.0,0.00019131]
[1736044329682,1.16985045,98161.0,98160.0,0.00019131]
[1736044330507,1.16785045,98161.0,98160.0,0.00019131]
[1736044331069,0.48210069,98159.0,98157.0,0.0001708]
[1736044331258,0.60510069,98159.0,98158.0,0.00030189]
[1736044332455,0.70593245,98159.0,98158.0,0.00030189]
[1736044332818,0.70493245,98159.0,98158.0,0.00030189]
[1736044332997,0.70693245,98159.0,98158.0,0.00030189]
[1736044333408,0.78603245,98159.0,98158.0,0.00030189]
[1736044335876,0.92314492,98159.0,98158.0,0.00030189]
[1736044336505,0.93319971,98159.0,98158.0,0.00030189]
[1736044337030,1.13362695,98159.0,98158.0,0.00030189]
[1736044338329,0.79608724,98159.0,98158.0,0.00030189]
[1736044339997,0.79608724,98159.0,98158.0,0.00013109]
[1736044340219,0.023,98154.0,98146.0,0.0001708]
[1736044340412,0.09983176,98147.0,98146.0,0.0001708]
[1736044340664,0.19983176,98147.0,98146.0,0.0001708]
[1736044340867,0.19983176,98147.0,98146.0,0.02222128]
[1736044341245,0.19983176,98147.0,98146.0,0.1262076]
[1736044342089,0.19983176,98147.0,98146.0,0.1312076]
[1736044343403,0.09983176,98147.0,98146.0,0.1272076]
[1736044343630,0.19983176,98147.0,98146.0,0.1262076]
[1736044343835,0.19983176,98147.0,98146.0,0.1312076]
[1736044344480,0.19983176,98147.0,98146.0,0.1302076]
[1736044344691,0.19983176,98147.0,98146.0,0.1312076]
[1736044345277,0.19983176,98147.0,98146.0,0.1272076]
[1736044345482,0.19983176,98147.0,98146.0,0.1312076]
[1736044346055,0.68105976,98147.0,98146.0,0.1272076]
[1736044346260,0.68105976,98147.0,98146.0,0.1292076]
[1736044346707,0.68105976,98147.0,98146.0,0.1282076]
[1736044347119,0.68105976,98147.0,98146.0,0.1292076]
[1736044347432,0.68105976,98147.0,98146.0,0.1282076]
[1736044347834,0.68105976,98147.0,98146.0,0.1292076]
[1736044348263,0.68105976,98147.0,98146.0,0.1272076]
[1736044348510,0.68105976,98147.0,98146.0,0.1292076]
[1736044348734,0.68105976,98147.0,98146.0,0.1282076]
[1736044350127,0.68105976,98147.0,98146.0,0.1292076]
[1736044350578,0.68105976,98147.0,98146.0,0.1282076]
[1736044350996,0.68105976,98147.0,98146.0,0.1292076]
[1736044352412,0.68105976,98147.0,98146.0,0.10715712]
[1736044360571,0.77254111,98147.0,98146.0,0.10715712]
[1736044361728,0.68105976,98147.0,98146.0,0.10715712]
[1736044363057,1.20261645,98147.0,98146.0,0.10715712]
[1736044364198,1.01949487,98147.0,98146.0,0.10715712]
[1736044370349,1.2028952,98147.0,98146.0,0.10715712]
[1736044373481,0.8186096,98147.0,98146.0,0.10715712]
[1736044374332,0.68105976,98147.0,98146.0,0.10715712]
[1736044375844,1.01956197,98147.0,98146.0,0.10715712]
[1736044376551,1.01956197,98147.0,98146.0,0.10615712]
[1736044377286,1.01956197,98147.0,98146.0,0.10415712]
[1736044377488,1.01956197,98147.0,98146.0,0.10515712]
[1736044378526,1.20296211,98147.0,98146.0,0.10515712]
[1736044380482,1.20296211,98147.0,98146.0,0.10415712]
[1736044381176,1.20296211,98147.0,98146.0,0.10515712]
[1736044382133,1.20296211,98147.0,98146.0,0.10415712]
[1736044382871,1.20296211,98147.0,98146.0,0.10515712]
[1736044383675,1.24849767,98147.0,98146.0,0.10515712]
[1736044384108,1.24849767,98147.0,98146.0,0.10415712]
[1736044384554,1.24849767,98147.0,98146.0,0.10515712]
[1736044385041,1.01956197,98147.0,98146.0,0.10515712]
[1736044386118,1.20295967,98147.0,98146.0,0.10515712]
[1736044387301,1.20295967,98147.0,98146.0,0.10415712]
[1736044387547,1.20295967,98147.0,98146.0,0.12728053]
[1736044389743,1.01956197,98147.0,98146.0,0.12728053]
[1736044390357,1.01956197,98147.0,98146.0,0.12628053]
[1736044390566,1.01956197,98147.0,98146.0,0.12728053]
[1736044390870,1.20295967,98147.0,98146.0,0.12628053]
[1736044391287,1.20295967,98147.0,98146.0,0.12728053]
[1736044398139,1.20295967,98147.0,98146.0,0.12628053]
[1736044398342,1.20295967,98147.0,98146.0,0.12728053]
[1736044399216,1.20295967,98147.0,98146.0,0.12628053]
[1736044400486,1.20295967,98147.0,98146.0,0.12728053]
[1736044402602,1.01956197,98147.0,98146.0,0.12728053]
[1736044403028,0.91956197,98147.0,98146.0,0.12728053]
[1736044403138,1.01956197,98147.0,98146.0,0.12728053]
[1736044404187,1.01956197,98147.0,98146.0,0.12628053]
[1736044404389,1.01956197,98147.0,98146.0,0.12728053]
[1736044406978,1.06866197,98147.0,98146.0,0.12728053]
[1736044407239,1.06866197,98147.0,98146.0,0.10515712]
[1736044407475,1.15126197,98147.0,98146.0,0.10515712]
[1736044408876,1.33465967,98147.0,98146.0,0.10515712]
[1736044411766,1.20295967,98147.0,98146.0,0.10515712]
[1736044411998,1.10312791,98147.0,98146.0,0.10515712]
[1736044412236,1.00312791,98147.0,98146.0,0.33108084]
[1736044412475,1.10312791,98147.0,98146.0,0.33108084]
[1736044412703,1.00312791,98147.0,98146.0,0.33108084]
[1736044412912,1.00312791,98147.0,98146.0,0.34141527]
[1736044413257,1.00312791,98147.0,98146.0,0.34041527]
[1736044414089,1.00312791,98147.0,98146.0,0.84041527]
[1736044414300,0.481228,98147.0,98146.0,0.84041527]
[1736044414505,0.481228,98147.0,98146.0,0.84341527]
[1736044414916,0.581228,98147.0,98146.0,0.84141527]
[1736044415143,0.581228,98147.0,98146.0,0.84441527]
[1736044415525,0.581228,98147.0,98146.0,0.84341527]
[1736044415691,0.581228,98147.0,98146.0,0.83308084]
[1736044416891,0.581228,98147.0,98146.0,0.83408084]
[1736044417063,0.481228,98147.0,98146.0,0.83408084]
[1736044417285,0.581228,98147.0,98146.0,0.83408084]
[1736044446052,0.481228,98147.0,98146.0,0.83408084]
[1736044446251,0.581228,98147.0,98146.0,0.83408084]
[1736044449286,0.581228,98147.0,98146.0,0.83408084]
[1736044465622,0.481228,98147.0,98146.0,0.83408084]
[1736044465829,0.481228,98147.0,98146.0,0.98408084]
[1736044466009,0.481228,98147.0,98146.0,1.06728084]
[1736044467039,0.481228,98147.0,98146.0,1.06628084]
[1736044467441,0.481228,98147.0,98146.0,1.06328084]
[1736044467705,0.481228,98147.0,98146.0,1.54150131]
[1736044468233,0.481228,98147.0,98146.0,1.54750131]
[1736044468746,0.481228,98147.0,98146.0,1.54150131]
[1736044468978,0.1,98161.0,98156.0,0.353757]
[1736044469171,0.1,98161.0,98156.0,0.45774332]
[1736044469371,0.1,98161.0,98156.0,0.47582621]
[1736044471098,0.1,98161.0,98156.0,0.97582621]
[1736044471574,0.1,98161.0,98156.0,0.97682621]